fUST/lending_fUST_20250602
["ID","MTS","AMOUNT","RATE_DAILY","PERIOD"]
[363751734,1748861438861,-430.0,0.00016599,2]
[363751736,1748861438871,-483.50776994,0.00016599,2]
[363751738,1748861438880,-430.0,0.00016599,2]
[363751740,1748861438891,-430.0,0.00016599,2]
[363751742,1748861438900,-430.0,0.00016599,2]
[363751744,1748861438909,-430.0,0.00016599,2]
[363751746,1748861438919,-430.0,0.00016599,2]
[363751748,1748861438928,-430.0,0.00016599,2]
[363751750,1748861438938,-430.0,0.00016599,2]
[363751752,1748861438948,-430.0,0.00016599,2]
[363751755,1748861438958,-463.95,0.00016599,2]
[363751756,1748861438968,-640.71,0.00016599,2]
[363751759,1748861438978,-430.0,0.00016599,2]
[363751760,1748861438988,-430.0,0.00016599,2]
[363751763,1748861438999,-307.09800826,0.00016599,2]
[363751764,1748861439008,-430.0,0.00016599,2]
[363751767,1748861439019,-203.86889505,0.00016599,2]
[363751769,1748861439029,-436.69522882,0.00016599,2]
[363751771,1748861439039,-523.91526245,0.00016599,2]
[363751773,1748861439049,-430.0,0.00016599,2]
[363751775,1748861439058,-1939.29,0.00016599,2]
[363751777,1748861439068,-430.0,0.00016599,2]
[363751779,1748861439077,-430.0,0.00016599,2]
[363751781,1748861439087,-321.05,0.00016599,2]
[363751783,1748861439097,-430.0,0.00016599,2]
[363751784,1748861439106,-2068.83,0.00016599,2]
[363751786,1748861439117,-430.0,0.00016599,2]
[363751788,1748861439127,-430.0,0.00016599,2]
[363751790,1748861439136,-916.12,0.00016599,2]
[363751792,1748861439145,-430.0,0.00016599,2]
[363751794,1748861439155,-430.0,0.00016599,2]
[363751796,1748861439164,-430.0,0.00016599,2]
[363751798,1748861439174,-430.0,0.00016599,2]
[363751800,1748861439184,-430.0,0.00016599,2]
[363751802,1748861439195,-430.0,0.00016599,2]
[363751804,1748861439205,-430.0,0.00016599,2]
[363751805,1748861439215,-430.0,0.00016599,2]
[363751808,1748861439225,-855.67,0.00016599,2]
[363751810,1748861439235,-430.0,0.00016599,2]
[363751813,1748861439244,-430.0,0.00016599,2]
[363751815,1748861439253,-465.62,0.00016599,2]
[363751817,1748861439263,-430.0,0.00016599,2]
[363751819,1748861439273,-430.0,0.00016599,2]
[363751821,1748861439283,-430.0,0.00016599,2]
[363751823,1748861439291,-430.0,0.00016599,2]
[363751825,1748861439301,-576.77,0.00016599,2]
[363751827,1748861439311,-430.0,0.00016599,2]
[363751828,1748861439320,-554.84500388,0.00016599,2]
[363751830,1748861439330,-430.0,0.00016599,2]
[363751832,1748861439340,-430.0,0.00016599,2]
[363751848,1748861439480,-430.0,0.00016599,2]
[363751850,1748861439491,-430.0,0.00016599,2]
[363751852,1748861439501,-755.34,0.00016599,2]
[363751854,1748861439515,-5039.62,0.00016599,2]
[363751856,1748861439525,-39863.3879595,0.000166,2]
[363751858,1748861439535,-430.0,0.00016706,2]
[363751860,1748861439545,-430.0,0.00016706,2]
[363751862,1748861439555,-430.0,0.00016706,2]
[363751863,1748861439564,-430.0,0.00016706,2]
[363751866,1748861439575,-430.0,0.00016706,2]
[363751867,1748861439585,-430.0,0.00016706,2]
[363751869,1748861439595,-430.0,0.00016706,2]
[363751871,1748861439604,-430.0,0.00016706,2]
[363751873,1748861439614,-430.0,0.00016706,2]
[363751875,1748861439624,-350.0,0.00016707,2]
[363751877,1748861439634,-430.0,0.00016707,2]
[363751879,1748861439643,-430.0,0.00016707,2]
[363751881,1748861439653,-430.0,0.00016707,2]
[363751883,1748861439663,-430.0,0.00016707,2]
[363751885,1748861439672,-430.0,0.00016707,2]
[363751887,1748861439682,-430.0,0.00016707,2]
[363751889,1748861439691,-430.0,0.00016707,2]
[363751891,1748861439702,-430.0,0.00016707,2]
[363751893,1748861439712,-430.0,0.00016707,2]
[363751895,1748861439722,-430.0,0.00016707,2]
[363751897,1748861439732,-290.0,0.00016707,2]
[363751899,1748861439743,-430.0,0.00016707,2]
[363751901,1748861439752,-163.44205103,0.00016707,2]
[363751903,1748861439762,-430.0,0.00016707,2]
[363751905,1748861439773,-430.0,0.00016707,2]
[363751907,1748861439783,-223.870631,0.00016707,2]
[363751909,1748861439793,-430.0,0.00016707,2]
[363751911,1748861439803,-430.0,0.00016707,2]
[363751913,1748861439812,-359.14307656,0.00016707,2]
[363751915,1748861439822,-430.0,0.00016707,2]
[363751917,1748861439831,-157.24965494,0.00016708,2]
[363751919,1748861439842,-1506.98,0.00016872,2]
[363751921,1748861439852,-527.66,0.00016872,2]
[363751923,1748861439862,-430.0,0.00016872,2]
[363751925,1748861439872,-476.57376914,0.00016872,2]
[363751926,1748861439882,-430.0,0.00016872,2]
[363751928,1748861439891,-430.0,0.00016872,2]
[363751930,1748861439901,-681.85,0.00016872,2]
[363751932,1748861439911,-430.0,0.00016872,2]
[363751934,1748861439920,-430.0,0.00016872,2]
[363751936,1748861439931,-724.43,0.00016872,2]
[363751938,1748861439940,-430.0,0.00016872,2]
[363751940,1748861439950,-1230.02,0.00016872,2]
[363751942,1748861439960,-430.0,0.00016872,2]
[363751944,1748861439969,-430.0,0.00016872,2]
[363751946,1748861439979,-430.0,0.00016872,2]
[363751948,1748861439988,-373.77904009,0.00016872,2]
[363751950,1748861439998,-430.0,0.00016872,2]
[363751952,1748861440008,-430.0,0.00016872,2]
[363751954,1748861440018,-1724.93,0.00016872,2]
[363751956,1748861440028,-430.0,0.00016872,2]
[363751958,1748861440039,-3273.3,0.00016872,2]
[363751960,1748861440049,-430.0,0.00016872,2]
[363751962,1748861440059,-430.0,0.00016872,2]
[363751964,1748861440070,-430.0,0.00016872,2]
[363751966,1748861440079,-430.0,0.00016872,2]
[363751968,1748861440089,-452.56514672,0.00016872,2]
[363751970,1748861440100,-2305.16,0.00016872,2]
[363751972,1748861440110,-1638.59,0.00016872,2]
[363751974,1748861440120,-430.0,0.00016872,2]
[363751976,1748861440131,-430.0,0.00016872,2]
[363751978,1748861440140,-430.0,0.00016872,2]
[363751980,1748861440151,-423.26474772,0.00016872,2]
[363751982,1748861440161,-430.0,0.00016873,2]
[363751984,1748861440171,-405.74558301,0.00016873,2]
[363751986,1748861440180,-430.0,0.00016873,2]
[363751988,1748861440190,-430.0,0.00016873,2]
[363751990,1748861440200,-430.0,0.00016873,2]
[363751992,1748861440209,-430.0,0.00016873,2]
[363751994,1748861440219,-430.0,0.00016873,2]
[363751996,1748861440229,-435.92375421,0.00016873,2]
[363751998,1748861440238,-463.95,0.00016873,2]
[363752000,1748861440249,-640.71,0.00016873,2]
[363752002,1748861440260,-430.0,0.00016873,2]
[363752004,1748861440271,-1939.29,0.00016873,2]
[363752006,1748861440281,-430.0,0.00016873,2]
[363752008,1748861440291,-430.0,0.00016873,2]
[363752010,1748861440300,-430.0,0.00016873,2]
[363752012,1748861440311,-2068.83,0.00016873,2]
[363752014,1748861440321,-430.0,0.00016873,2]
[363752016,1748861440330,-916.12,0.00016873,2]
[363752018,1748861440340,-430.0,0.00016873,2]
[363752020,1748861440351,-430.0,0.00016873,2]
[363752022,1748861440361,-430.0,0.00016873,2]
[363752024,1748861440370,-430.0,0.00016873,2]
[363752026,1748861440380,-430.0,0.00016873,2]
[363752028,1748861440389,-430.0,0.00016873,2]
[363752030,1748861440399,-855.67,0.00016873,2]
[363752032,1748861440413,-430.0,0.00016873,2]
[363752033,1748861440425,-465.62,0.00016873,2]
[363752034,1748861440436,-430.0,0.00016873,2]
[363752035,1748861440446,-430.0,0.00016873,2]
[363752036,1748861440456,-576.77,0.00016873,2]
[363752037,1748861440466,-430.0,0.00016873,2]
[363752038,1748861440477,-430.0,0.00016873,2]
[363752039,1748861440487,-430.0,0.00016873,2]
[363752040,1748861440497,-755.34,0.00016873,2]
[363752041,1748861440508,-5039.62,0.00016873,2]
[363752042,1748861440521,-5649.67658884,0.00016877,2]
[363752043,1748861440531,-430.0,0.0001698,2]
[363752044,1748861440541,-430.0,0.0001698,2]
[363752045,1748861440551,-430.0,0.00016981,2]
[363752046,1748861440561,-430.0,0.00016981,2]
[363752047,1748861440572,-430.0,0.00016981,2]
[363752048,1748861440581,-430.0,0.00016981,2]
[363752049,1748861440591,-430.0,0.00016981,2]
[363752050,1748861440601,-430.0,0.00016981,2]
[363752051,1748861440611,-168.58429613,0.00016981,2]
[363752052,1748861440622,-430.0,0.00016981,2]
[363752053,1748861440632,-1700.77139176,0.00017046,2]
[363752054,1748861440641,-609.23207556,0.0001712,2]
[363752055,1748861440651,-500.0,0.0001712,2]
[363752056,1748861440661,-500.0,0.0001712,2]
[363752058,1748861440670,-502.26110878,0.0001712,2]
[363752060,1748861440680,-1506.98,0.00017146,2]
[363752062,1748861440690,-527.66,0.00017146,2]
[363752064,1748861440699,-298.63612072,0.00017146,2]
[363752066,1748861440709,-430.0,0.00017146,2]
[363752068,1748861440719,-430.0,0.00017146,2]
[363752070,1748861440728,-681.85,0.00017146,2]
[363752071,1748861440738,-430.0,0.00017146,2]
[363752073,1748861440747,-430.0,0.00017146,2]
[363752075,1748861440757,-724.43,0.00017146,2]
[363752078,1748861440768,-285.45419088,0.00017146,2]
[363752080,1748861440778,-472.01067594,0.00017146,2]
[363752082,1748861440787,-430.0,0.00017146,2]
[363752084,1748861440797,-430.0,0.00017146,2]
[363752086,1748861440806,-439.41643294,0.00017146,2]
[363752088,1748861440815,-430.0,0.00017146,2]
[363752090,1748861440825,-1724.93,0.00017146,2]
[363752092,1748861440835,-3273.3,0.00017146,2]
[363752094,1748861440843,-430.0,0.00017146,2]
[363752096,1748861440853,-430.0,0.00017146,2]
[363752098,1748861440862,-2305.16,0.00017146,2]
[363752100,1748861440872,-1638.59,0.00017146,2]
[363752102,1748861440881,-430.0,0.00017146,2]
[363752104,1748861440891,-430.0,0.00017147,2]
[363752106,1748861440900,-494.09,0.00017147,2]
[363752108,1748861440909,-530.88954051,0.00017147,2]
[363752109,1748861440919,-430.0,0.00017147,2]
[363752111,1748861440929,-463.95,0.00017147,2]
[363752114,1748861440942,-640.71,0.00017147,2]
[363752116,1748861440952,-430.0,0.00017147,2]
[363752118,1748861440961,-1939.29,0.00017147,2]
[363752120,1748861440971,-2068.83,0.00017147,2]
[363752122,1748861440981,-430.0,0.00017147,2]
[363752124,1748861440990,-916.12,0.00017147,2]
[363752126,1748861441000,-574.89539332,0.00017147,2]
[363752128,1748861441009,-430.0,0.00017147,2]
[363752130,1748861441019,-430.0,0.00017147,2]
[363752132,1748861441029,-430.0,0.00017147,2]
[363752134,1748861441038,-430.0,0.00017147,2]
[363752136,1748861441047,-430.0,0.00017147,2]
[363752138,1748861441057,-855.67,0.00017147,2]
[363752140,1748861441066,-430.0,0.00017147,2]
[363752142,1748861441075,-465.62,0.00017147,2]
[363752144,1748861441085,-210.96170617,0.00017147,2]
[363752146,1748861441095,-576.77,0.00017147,2]
[363752148,1748861441104,-430.0,0.00017147,2]
[363752150,1748861441114,-430.0,0.00017147,2]
[363752152,1748861441123,-755.34,0.00017147,2]
[363752154,1748861441132,-5039.62,0.00017147,2]
[363752156,1748861441142,-500.0,0.00017176,2]
[363752158,1748861441151,-500.0,0.00017176,2]
[363752160,1748861441161,-407.67132712,0.00017221,2]
[363752162,1748861441171,-504.84486473,0.00017221,2]
[363752164,1748861441180,-430.0,0.00017254,2]
[363752166,1748861441189,-536.79,0.00017255,2]
[363752168,1748861441199,-430.0,0.00017255,2]
[363752170,1748861441209,-430.0,0.00017255,2]
[363752172,1748861441218,-500.79122663,0.00017258,2]
[363752174,1748861441227,-500.0,0.00017258,2]
[363752176,1748861441237,-500.83326274,0.00017258,2]
[363752178,1748861441246,-500.0,0.00017265,2]
[363752180,1748861441256,-500.0,0.00017265,2]
[363752182,1748861441266,-500.0,0.00017276,2]
[363752184,1748861441276,-500.0,0.00017276,2]
[363752186,1748861441286,-500.0,0.00017276,2]
[363752188,1748861441295,-500.0,0.00017276,2]
[363752190,1748861441305,-500.0,0.00017276,2]
[363752192,1748861441314,-500.0,0.00017385,2]
[363752194,1748861441325,-1506.98,0.0001742,2]
[363752196,1748861441334,-527.66,0.0001742,2]
[363752198,1748861441344,-430.0,0.0001742,2]
[363752200,1748861441354,-430.0,0.0001742,2]
[363752202,1748861441363,-681.85,0.0001742,2]
[363752204,1748861441373,-430.0,0.0001742,2]
[363752206,1748861441382,-430.0,0.0001742,2]
[363752208,1748861441393,-724.43,0.0001742,2]
[363752210,1748861441402,-430.0,0.0001742,2]
[363752212,1748861441412,-430.0,0.0001742,2]
[363752214,1748861441423,-1724.93,0.0001742,2]
[363752216,1748861441435,-3273.3,0.0001742,2]
[363752218,1748861441444,-430.0,0.0001742,2]
[363752220,1748861441453,-430.0,0.0001742,2]
[363752221,1748861441463,-2305.16,0.0001742,2]
[363752223,1748861441473,-1638.59,0.0001742,2]
[363752225,1748861441483,-3340.3,0.00017421,2]
[363752227,1748861441492,-3340.3,0.00017421,2]
[363752229,1748861441503,-3340.3,0.00017421,2]
[363752231,1748861441513,-430.0,0.00017421,2]
[363752233,1748861441523,-430.0,0.00017421,2]
[363752235,1748861441533,-463.95,0.00017421,2]
[363752237,1748861441542,-640.71,0.00017421,2]
[363752239,1748861441552,-1939.29,0.00017421,2]
[363752241,1748861441562,-2068.83,0.00017421,2]
[363752243,1748861441571,-430.0,0.00017421,2]
[363752245,1748861441581,-916.12,0.00017421,2]
[363752247,1748861441591,-430.0,0.00017421,2]
[363752249,1748861441601,-430.0,0.00017421,2]
[363752251,1748861441611,-855.67,0.00017421,2]
[363752253,1748861441620,-430.0,0.00017421,2]
[363752255,1748861441630,-465.62,0.00017421,2]
[363752257,1748861441639,-576.77,0.00017421,2]
[363752259,1748861441648,-430.0,0.00017421,2]
[363752261,1748861441658,-430.0,0.00017421,2]
[363752263,1748861441667,-755.34,0.00017421,2]
[363752265,1748861441677,-5039.62,0.00017421,2]
[363752267,1748861441686,-430.0,0.00017529,2]
[363752268,1748861441696,-430.0,0.00017529,2]
[363752271,1748861441706,-581.19650794,0.00017546,2]
[363752272,1748861441715,-173.34707509,0.0001755,2]
[363752274,1748861441725,-441.93286393,0.00017553,2]
[363752276,1748861441734,-1000.0,0.00017668,2]
[363752278,1748861441744,-715.36747488,0.00017694,2]
[363752280,1748861441754,-1506.98,0.00017694,2]
[363752282,1748861441763,-527.66,0.00017694,2]
[363752284,1748861441773,-430.0,0.00017694,2]
[363752286,1748861441782,-430.0,0.00017694,2]
[363752288,1748861441791,-681.85,0.00017694,2]
[363752290,1748861441801,-430.0,0.00017694,2]
[363752292,1748861441810,-430.0,0.00017694,2]
[363752294,1748861441820,-724.43,0.00017694,2]
[363752296,1748861441829,-430.0,0.00017694,2]
[363752298,1748861441839,-430.0,0.00017694,2]
[363752300,1748861441849,-1724.93,0.00017694,2]
[363752302,1748861441858,-3273.3,0.00017694,2]
[363752304,1748861441867,-430.0,0.00017694,2]
[363752306,1748861441877,-430.0,0.00017694,2]
[363752308,1748861441887,-2305.16,0.00017694,2]
[363752309,1748861441896,-1638.59,0.00017694,2]
[363752311,1748861441905,-430.0,0.00017695,2]
[363752313,1748861441914,-430.0,0.00017695,2]
[363752315,1748861441924,-463.95,0.00017695,2]
[363752317,1748861441934,-640.71,0.00017695,2]
[363752319,1748861441944,-1939.29,0.00017695,2]
[363752322,1748861441956,-2068.83,0.00017695,2]
[363752323,1748861441966,-430.0,0.00017695,2]
[363752326,1748861441976,-916.12,0.00017695,2]
[363752328,1748861441986,-430.0,0.00017695,2]
[363752330,1748861441995,-430.0,0.00017695,2]
[363752331,1748861442006,-855.67,0.00017695,2]
[363752333,1748861442016,-430.0,0.00017695,2]
[363752335,1748861442026,-465.62,0.00017695,2]
[363752337,1748861442036,-576.77,0.00017695,2]
[363752339,1748861442045,-430.0,0.00017695,2]
[363752341,1748861442055,-430.0,0.00017695,2]
[363752343,1748861442065,-755.34,0.00017695,2]
[363752345,1748861442074,-5039.62,0.00017695,2]
[363752347,1748861442084,-1700.77139173,0.00017758,2]
[363752349,1748861442093,-430.0,0.00017803,2]
[363752351,1748861442103,-430.0,0.00017803,2]
[363752353,1748861442112,-505.162816,0.00017813,2]
[363752355,1748861442123,-501.18617219,0.00017824,2]
[363752357,1748861442133,-1000.0,0.00017824,2]
[363752359,1748861442142,-3211.32007859,0.000179,2]
[363752361,1748861442153,-489.06169787,0.00017934,2]
[363752363,1748861442163,-1506.98,0.00017968,2]
[363752365,1748861442173,-527.66,0.00017968,2]
[363752367,1748861442182,-473.01815696,0.00017968,2]
[363752369,1748861442192,-430.0,0.00017968,2]
[363752371,1748861442202,-681.85,0.00017968,2]
[363752373,1748861442211,-430.0,0.00017968,2]
[363752375,1748861442220,-430.0,0.00017968,2]
[363752377,1748861442230,-724.43,0.00017968,2]
[363752379,1748861442239,-430.0,0.00017968,2]
[363752381,1748861442248,-430.0,0.00017968,2]
[363752384,1748861442257,-1724.93,0.00017968,2]
[363752386,1748861442267,-3273.3,0.00017968,2]
[363752389,1748861442276,-499.16680861,0.00017968,2]
[363752403,1748861442394,-2305.16,0.00017968,2]
[363752405,1748861442405,-1638.59,0.00017968,2]
[363752407,1748861442415,-430.0,0.00017969,2]
[363752409,1748861442429,-430.0,0.00017969,2]
[363752411,1748861442440,-463.95,0.00017969,2]
[363752414,1748861442450,-640.71,0.00017969,2]
[363752416,1748861442460,-1939.29,0.00017969,2]
[363752418,1748861442470,-2068.83,0.00017969,2]
[363752420,1748861442479,-430.0,0.00017969,2]
[363752422,1748861442489,-916.12,0.00017969,2]
[363752424,1748861442499,-430.0,0.00017969,2]
[363752426,1748861442509,-430.0,0.00017969,2]
[363752428,1748861442520,-855.67,0.00017969,2]
[363752430,1748861442530,-430.0,0.00017969,2]
[363752432,1748861442539,-465.62,0.00017969,2]
[363752433,1748861442549,-576.77,0.00017969,2]
[363752435,1748861442559,-430.0,0.00017969,2]
[363752437,1748861442568,-430.0,0.00017969,2]
[363752439,1748861442577,-755.34,0.00017969,2]
[363752441,1748861442589,-5039.62,0.00017969,2]
[363752443,1748861442598,-151.0,0.00018077,2]
[363752445,1748861442607,-165.418167,0.00018077,2]
[363752447,1748861442616,-165.418167,0.00018077,2]
[363752449,1748861442626,-430.0,0.00018077,2]
[363752451,1748861442635,-430.0,0.00018077,2]
[363752453,1748861442645,-398.67892568,0.00018087,2]
[363752455,1748861442655,-3211.32007833,0.00018107,2]
[363752457,1748861442664,-420.0,0.00018135,2]
[363752459,1748861442674,-420.0,0.00018135,2]
[363752461,1748861442684,-1000.0,0.00018216,2]
[363752463,1748861442693,-1506.98,0.00018242,2]
[363752465,1748861442702,-527.66,0.00018242,2]
[363752467,1748861442712,-430.0,0.00018242,2]
[363752469,1748861442721,-681.85,0.00018242,2]
[363752471,1748861442730,-430.0,0.00018242,2]
[363752473,1748861442739,-430.0,0.00018242,2]
[363752475,1748861442748,-724.43,0.00018242,2]
[363752477,1748861442757,-430.0,0.00018242,2]
[363752479,1748861442767,-430.0,0.00018242,2]
[363752481,1748861442778,-1724.93,0.00018242,2]
[363752483,1748861442787,-3273.3,0.00018242,2]
[363752485,1748861442797,-2305.16,0.00018242,2]
[363752487,1748861442806,-1638.59,0.00018242,2]
[363752488,1748861442816,-528.97811078,0.00018243,2]
[363752490,1748861442825,-430.0,0.00018243,2]
[363752492,1748861442834,-463.95,0.00018243,2]
[363752494,1748861442844,-640.71,0.00018243,2]
[363752496,1748861442853,-1939.29,0.00018243,2]
[363752498,1748861442862,-2068.83,0.00018243,2]
[363752500,1748861442872,-430.0,0.00018243,2]
[363752502,1748861442881,-916.12,0.00018243,2]
[363752504,1748861442891,-430.0,0.00018243,2]
[363752506,1748861442900,-430.0,0.00018243,2]
[363752508,1748861442910,-855.67,0.00018243,2]
[363752510,1748861442919,-474.36,0.00018243,2]
[363752512,1748861442928,-465.62,0.00018243,2]
[363752514,1748861442938,-576.77,0.00018243,2]
[363752516,1748861442947,-430.0,0.00018243,2]
[363752518,1748861442958,-430.0,0.00018243,2]
[363752521,1748861442967,-755.34,0.00018243,2]
[363752524,1748861442977,-5039.62,0.00018243,2]
[363752526,1748861442987,-155.0,0.00018257,2]
[363752528,1748861442997,-3211.32007833,0.00018314,2]
[363752530,1748861443006,-430.0,0.00018351,2]
[363752532,1748861443015,-430.0,0.00018351,2]
[363752534,1748861443027,-1500.0,0.00018372,2]
[363752536,1748861443037,-1700.77139173,0.00018469,2]
[363752538,1748861443046,-1506.98,0.00018516,2]
[363752540,1748861443055,-527.66,0.00018516,2]
[363752542,1748861443064,-430.0,0.00018516,2]
[363752544,1748861443074,-681.85,0.00018516,2]
[363752546,1748861443086,-430.0,0.00018516,2]
[363752548,1748861443096,-430.0,0.00018516,2]
[363752550,1748861443105,-724.43,0.00018516,2]
[363752552,1748861443115,-430.0,0.00018516,2]
[363752554,1748861443124,-430.0,0.00018516,2]
[363752556,1748861443133,-1724.93,0.00018516,2]
[363752558,1748861443142,-3273.3,0.00018516,2]
[363752560,1748861443151,-2305.16,0.00018516,2]
[363752562,1748861443161,-1638.59,0.00018516,2]
[363752564,1748861443171,-462.99,0.00018517,2]
[363752566,1748861443181,-463.95,0.00018517,2]
[363752568,1748861443191,-640.71,0.00018517,2]
[363752570,1748861443200,-1939.29,0.00018517,2]
[363752572,1748861443210,-2068.83,0.00018517,2]
[363752574,1748861443219,-449.81438535,0.00018517,2]
[363752576,1748861443229,-916.12,0.00018517,2]
[363752578,1748861443238,-430.0,0.00018517,2]
[363752580,1748861443248,-430.0,0.00018517,2]
[363752582,1748861443258,-855.67,0.00018517,2]
[363752584,1748861443269,-465.62,0.00018517,2]
[363752586,1748861443278,-576.77,0.00018517,2]
[363752588,1748861443287,-430.0,0.00018517,2]
[363752590,1748861443297,-430.0,0.00018517,2]
[363752592,1748861443307,-755.34,0.00018517,2]
[363752594,1748861443316,-5039.62,0.00018517,2]
[363752596,1748861443326,-3211.32007833,0.00018521,2]
[363752598,1748861443335,-616.5514504,0.0001857,2]
[363752600,1748861443345,-500.0,0.00018596,2]
[363752602,1748861443355,-173.34707509,0.00018601,2]
[363752604,1748861443364,-151.0,0.00018625,2]
[363752606,1748861443374,-165.418167,0.00018625,2]
[363752608,1748861443382,-165.418167,0.00018625,2]
[363752610,1748861443392,-430.0,0.00018625,2]
[363752612,1748861443402,-430.0,0.00018625,2]
[363752614,1748861443411,-3211.32007833,0.00018728,2]
[363752616,1748861443421,-160.0,0.00018746,2]
[363752617,1748861443434,-160.0,0.00018746,2]
[363752620,1748861443444,-160.0,0.00018752,2]
[363752622,1748861443454,-12668.79298183,0.00018752,2]
[363752623,1748861443464,-160.0,0.00018752,2]
[363752626,1748861443475,-423.56953423,0.00018752,2]
[363752628,1748861443486,-842.5625,0.00018752,2]
[363752630,1748861443494,-160.0,0.00018752,2]
[363752632,1748861443505,-229.39799938,0.00018752,2]
[363752634,1748861443513,-160.0,0.00018752,2]
[363752636,1748861443523,-160.0,0.00018752,2]
[363752637,1748861443532,-212.83419937,0.00018752,2]
[363752639,1748861443542,-1506.98,0.0001879,2]
[363752641,1748861443552,-527.66,0.0001879,2]
[363752644,1748861443561,-430.0,0.0001879,2]
[363752645,1748861443570,-681.85,0.0001879,2]
[363752648,1748861443580,-430.0,0.0001879,2]
[363752650,1748861443590,-430.0,0.0001879,2]
[363752652,1748861443599,-724.43,0.0001879,2]
[363752654,1748861443608,-430.0,0.0001879,2]
[363752656,1748861443617,-430.0,0.0001879,2]
[363752658,1748861443626,-1724.93,0.0001879,2]
[363752660,1748861443635,-3273.3,0.0001879,2]
[363752662,1748861443645,-2305.16,0.0001879,2]
[363752664,1748861443653,-1638.59,0.0001879,2]
[363752665,1748861443662,-500.0,0.0001879,2]
[363752667,1748861443672,-499.11506721,0.0001879,2]
[363752668,1748861443681,-500.0,0.0001879,2]
[363752670,1748861443692,-500.0,0.0001879,2]
[363752672,1748861443702,-500.0,0.0001879,2]
[363752674,1748861443711,-500.0,0.0001879,2]
[363752676,1748861443722,-500.0,0.0001879,2]
[363752678,1748861443731,-500.0,0.0001879,2]
[363752680,1748861443743,-500.0,0.0001879,2]
[363752682,1748861443753,-500.0,0.0001879,2]
[363752684,1748861443762,-500.0,0.0001879,2]
[363752686,1748861443772,-500.0,0.0001879,2]
[363752688,1748861443782,-500.0,0.0001879,2]
[363752690,1748861443791,-350.48416774,0.0001879,2]
[363752692,1748861443801,-500.0,0.0001879,2]
[363752694,1748861443810,-500.0,0.0001879,2]
[363752696,1748861443820,-500.0,0.0001879,2]
[363752698,1748861443830,-500.0,0.0001879,2]
[363752700,1748861443840,-500.0,0.0001879,2]
[363752702,1748861443850,-500.0,0.0001879,2]
[363752705,1748861443860,-463.95,0.00018791,2]
[363752706,1748861443870,-640.71,0.00018791,2]
[363752709,1748861443881,-1939.29,0.00018791,2]
[363752710,1748861443890,-2068.83,0.00018791,2]
[363752712,1748861443900,-916.12,0.00018791,2]
[363752714,1748861443910,-430.0,0.00018791,2]
[363752716,1748861443920,-430.0,0.00018791,2]
[363752718,1748861443930,-855.67,0.00018791,2]
[363752720,1748861443940,-465.62,0.00018791,2]
[363752722,1748861443950,-576.77,0.00018791,2]
[363752724,1748861443960,-430.0,0.00018791,2]
[363752726,1748861443970,-430.0,0.00018791,2]
[363752728,1748861443979,-755.34,0.00018791,2]
[363752730,1748861443988,-5039.62,0.00018791,2]